bitfinex-derivatives/quotes_SOLF0:USTF0_20260308
["timestamp","ask_amount","ask_price","bid_price","bid_amount"]
[1772993349537,0.03561488,81.489,81.447,4.0914409]
[1772993349743,0.02109305,81.479,81.447,4.0914409]
[1772993350438,4.03260123,81.47,81.419,4.09739105]
[1772993350634,4.03260123,81.47,81.363,22.124]
[1772993350635,4.01150818,81.48,81.421,4.09739105]
[1772993350941,0.02109305,81.479,81.421,4.09739105]
[1772993351338,12.54005041,81.515,81.363,22.124]
[1772993351339,4.03260123,81.46,81.423,4.09739105]
[1772993351536,12.54005041,81.515,81.423,4.09739105]
[1772993351537,4.01150818,81.48,81.423,4.09739105]
[1772993351736,0.02233244,81.479,81.423,4.09739105]
[1772993352844,0.02233244,81.476,81.423,4.09739105]
[1772993353942,11.047,81.473,81.423,4.09739105]
[1772993355346,4.01150818,81.48,81.431,4.0478638]
[1772993355739,4.13165574,81.48,81.431,4.0478638]
[1772993356744,11.046,81.479,81.431,4.0478638]
[1772993357843,4.13165574,81.48,81.431,4.0478638]
[1772993358349,11.045,81.488,81.435,4.03837472]
[1772993360050,0.13912572,81.489,81.441,4.03892455]
[1772993362154,0.11143789,81.488,81.441,4.03892455]
[1772993363763,11.045,81.485,81.441,4.03892455]
[1772993365062,0.1111972,81.475,81.431,4.05233898]
[1772993365258,0.1111972,81.469,81.411,4.05233898]
[1772993365560,4.12270538,81.46,81.411,4.05233898]
[1772993366263,0.11458623,81.459,81.413,4.05064446]
[1772993367761,11.049,81.458,81.413,4.05064446]
[1772993368364,0.105605,81.457,81.413,4.05064446]
[1772993369264,0.105605,81.476,81.421,4.05513508]
[1772993369565,4.01150818,81.48,81.431,4.05513508]
[1772993369765,0.105605,81.488,81.431,4.05513508]
[1772993370663,0.105605,81.488,81.401,12.27]
[1772993370664,0.105605,81.488,81.44,4.01150818]
[1772993370869,0.10955528,81.499,81.441,4.05315994]
[1772993371257,0.10955528,81.499,81.445,4.05315994]
[1772993371566,0.10955528,81.499,81.451,4.05315994]
[1772993372168,11.044,81.497,81.452,4.06503319]
[1772993375172,0.10955528,81.499,81.452,4.06503319]
[1772993376374,0.10955528,81.499,81.405,22.112]
[1772993376375,0.10771307,81.459,81.397,4.09510263]
[1772993376568,12.26350273,81.518,81.275,172.263]
[1772993376569,0.10771307,81.429,81.371,4.09510263]
[1772993377169,0.10771307,81.429,81.374,4.09510263]
[1772993377781,4.02319771,81.45,81.391,4.09510263]
[1772993379774,11.05,81.448,81.395,4.09510263]
[1772993380176,11.05,81.448,81.401,4.09510263]
[1772993381175,0.18115591,81.453,81.411,4.09510263]
[1772993391278,11.049,81.458,81.411,4.09510263]
[1772993394278,11.049,81.458,81.413,4.11481015]
[1772993396182,11.048,81.467,81.415,4.11514449]
[1772993397779,11.048,81.467,81.417,11.054]
[1772993397980,11.048,81.467,81.418,4.10766044]
[1772993400579,4.02319771,81.47,81.418,4.10766044]
[1772993400781,4.02319771,81.45,81.401,4.10867833]
[1772993401878,15.07319771,81.45,81.402,4.10390266]
[1772993402084,4.02319771,81.45,81.402,4.10390266]
[1772993403391,11.05,81.448,81.402,4.10390266]
[1772993406489,4.02319771,81.46,81.406,4.12094651]
[1772993407091,4.02319771,81.47,81.411,4.12094651]
[1772993407891,11.048,81.466,81.413,4.12745629]
[1772993408287,4.02319771,81.46,81.413,4.12745629]
[1772993409290,11.049,81.458,81.415,4.12745629]
[1772993411897,4.02319771,81.46,81.418,4.11907165]
[1772993412087,11.047,81.467,81.418,4.11907165]
[1772993412891,11.047,81.467,81.42,15.17307165]
[1772993413190,4.02319771,81.46,81.421,4.11907165]
[1772993420404,15.07119771,81.46,81.421,4.11907165]
[1772993421899,4.08691903,81.459,81.411,11.055]
[1772993422406,4.02319771,81.45,81.411,11.055]
[1772993423800,4.02319771,81.45,81.412,3.88558533]
[1772993426404,4.08691903,81.449,81.412,3.88558533]
[1772993427600,4.02319771,81.46,81.419,3.88558533]
[1772993427903,8.05047138,81.46,81.419,3.88558533]
[1772993428101,4.02727367,81.467,81.421,3.88558533]
[1772993428401,4.02319771,81.47,81.421,3.88558533]
[1772993428597,8.05047138,81.47,81.421,3.88558533]
[1772993428804,4.02727367,81.469,81.421,3.88558533]
[1772993429202,4.02727367,81.479,81.429,3.88558533]
[1772993429398,11.045,81.483,81.429,3.88558533]
[1772993429601,8.05047138,81.49,81.43,4.02319771]
[1772993429906,10.2225092,81.489,81.431,3.88558533]
[1772993430204,10.2225092,81.488,81.431,3.88558533]
[1772993430402,8.05047138,81.49,81.431,3.88558533]
[1772993430403,10.2225092,81.487,81.431,3.88558533]
[1772993430603,10.2225092,81.486,81.431,3.88558533]
[1772993430803,8.05047138,81.49,81.441,3.88558533]
[1772993431108,10.21788361,81.489,81.441,3.88558533]
[1772993431303,10.21788361,81.488,81.441,3.88558533]
[1772993431509,10.21788361,81.487,81.441,3.88558533]
[1772993431703,8.05047138,81.49,81.441,3.88558533]
[1772993431904,10.21445711,81.489,81.441,3.88558533]
[1772993432207,10.21445711,81.488,81.441,3.88558533]
[1772993432506,8.05047138,81.49,81.443,3.88558533]
[1772993433204,3.77684127,81.502,81.451,4.10087146]
[1772993433506,4.02319771,81.5,81.451,4.10087146]
[1772993434408,4.02319771,81.5,81.462,4.10087146]
[1772993435605,7.80003898,81.51,81.462,4.10087146]
[1772993436405,7.80003898,81.51,81.464,4.10087146]
[1772993436606,3.77684127,81.499,81.453,4.10087146]
[1772993436810,4.02319771,81.49,81.453,4.10087146]
[1772993437011,3.77684127,81.479,81.442,4.10087146]
[1772993440417,4.01768479,81.49,81.444,4.10087146]
[1772993441823,4.01768479,81.49,81.446,4.10087146]
[1772993442819,4.01768479,81.49,81.449,4.10087146]
[1772993443616,3.77684127,81.491,81.449,4.10087146]
[1772993443816,3.77684127,81.499,81.451,4.10087146]
[1772993445819,3.77684127,81.499,81.453,4.10087146]
[1772993446825,3.77684127,81.499,81.455,4.10087146]
[1772993450726,3.77684127,81.499,81.457,4.10087146]
[1772993451628,11.043,81.497,81.457,4.10087146]
[1772993452225,14.81984127,81.497,81.457,4.10087146]
[1772993453729,3.77684127,81.496,81.457,4.10087146]
[1772993456019,4.01768479,81.49,81.457,4.10087146]
[1772993456226,3.77684127,81.496,81.457,4.10087146]
[1772993456933,11.044,81.494,81.457,4.10087146]
[1772993457323,3.77684127,81.493,81.457,4.10087146]
[1772993464233,4.01768479,81.5,81.457,4.10087146]
[1772993464535,11.043,81.501,81.457,4.10087146]
[1772993465836,11.043,81.501,81.461,4.78529102]
[1772993467935,4.78412234,81.499,81.461,4.78529102]
[1772993470431,11.043,81.501,81.416,22.109]
[1772993470432,4.01768479,81.49,81.444,4.78529102]
[1772993470636,4.78412234,81.489,81.444,4.78529102]
[1772993471738,4.78412234,81.489,81.444,15.83629102]
[1772993471938,4.78412234,81.489,81.445,4.78529102]
[1772993472837,4.78412234,81.489,81.448,15.83529102]
[1772993473638,4.78412234,81.489,81.448,4.78529102]
[1772993474735,11.045,81.487,81.448,4.78529102]
[1772993475040,4.78412234,81.486,81.448,4.78529102]
[1772993478443,4.78412234,81.497,81.448,4.78529102]
[1772993479742,4.78412234,81.497,81.458,11.049]
[1772993479941,4.78412234,81.497,81.459,4.78529102]
[1772993481546,10.24606045,81.496,81.459,4.78529102]
[1772993481846,4.78412234,81.496,81.459,4.78529102]
[1772993483250,4.01768479,81.48,81.421,4.78529102]
[1772993483454,4.78412234,81.488,81.431,4.78529102]
[1772993484552,4.78412234,81.5,81.451,4.78529102]
[1772993484945,4.78412234,81.499,81.451,4.78529102]
[1772993485851,4.78412234,81.499,81.456,11.049]
[1772993486048,4.78412234,81.499,81.457,4.78529102]
[1772993490852,4.01768479,81.5,81.457,4.78529102]
[1772993490853,4.78412234,81.496,81.457,4.78529102]
[1772993491347,4.78412234,81.496,81.458,4.78529102]
[1772993492955,4.78412234,81.496,81.461,5.04004055]
[1772993497658,4.78412234,81.496,81.463,5.04004055]
[1772993500062,4.78412234,81.496,81.465,5.04004055]
[1772993507871,4.78412234,81.496,81.467,11.047]
[1772993508067,4.78412234,81.496,81.467,16.08704055]
[1772993515176,4.78412234,81.496,81.467,5.04004055]
[1772993516474,4.80392168,81.489,81.452,11.049]
[1772993518277,4.80392168,81.489,81.452,16.08904055]
[1772993527191,4.80392168,81.489,81.452,5.04004055]
[1772993527491,5.50068237,81.469,81.421,5.50521617]
[1772993528800,5.50068237,81.469,81.438,5.50521617]
[1772993529998,5.50068237,81.469,81.44,5.50521617]
[1772993531794,5.50068237,81.503,81.466,5.50521617]
[1772993531995,5.50068237,81.5,81.466,5.50521617]
[1772993532201,5.50068237,81.509,81.466,5.50521617]
[1772993532392,5.50068237,81.499,81.466,5.50521617]
[1772993535300,5.50068237,81.509,81.47,5.50521617]
[1772993536403,4.015159,81.51,81.417,22.109]
[1772993536404,4.015159,81.51,81.474,5.50521617]
[1772993537906,4.015159,81.51,81.46,4.015159]
[1772993537907,4.015159,81.51,81.478,5.50521617]
[1772993540003,303.17124622,81.514,81.479,11.046]
[1772993540209,303.17124622,81.514,81.48,5.47497291]
[1772993541808,303.17124622,81.514,81.481,11.045]
[1772993542009,303.17124622,81.514,81.482,5.47497291]
[1772993545514,5.34468769,81.513,81.482,5.47497291]
[1772993545909,303.17124622,81.514,81.482,5.47497291]
[1772993546109,5.34468769,81.522,81.485,5.47497291]
[1772993546408,4.015159,81.54,81.491,5.47497291]
[1772993546613,4.015159,81.53,81.491,5.47497291]
[1772993546814,5.34468769,81.529,81.491,5.47497291]
[1772993547316,5.34468769,81.529,81.496,11.043]
[1772993548410,5.34468769,81.529,81.496,16.51797291]
[1772993548611,5.34468769,81.529,81.497,5.47497291]
[1772993556212,5.29295589,81.519,81.486,5.7187506]
[1772993558020,5.29295589,81.519,81.487,11.045]
[1772993561425,4.015159,81.52,81.49,5.7187506]
[1772993561624,5.29295589,81.529,81.49,5.7187506]
[1772993562825,5.29295589,81.529,81.493,5.7187506]
[1772993569134,5.29295589,81.529,81.495,5.7187506]
[1772993581646,5.29295589,81.548,81.498,5.7187506]
[1772993581848,295.37595276,81.549,81.501,5.7187506]
[1772993582746,5.29295589,81.557,81.512,5.7187506]
[1772993583552,5.29295589,81.557,81.524,5.43411988]
[1772993584045,5.36238566,81.568,81.528,5.43411988]
[1772993585852,5.36238566,81.568,81.53,5.38301839]
[1772993586645,5.36238566,81.568,81.533,5.38301839]
[1772993586951,5.6790095,81.579,81.533,5.38301839]
[1772993587753,5.6790095,81.579,81.535,5.38301839]
[1772993588944,5.6790095,81.579,81.538,5.38301839]
[1772993589451,5.6790095,81.579,81.547,5.38301839]
[1772993591248,5.6790095,81.579,81.537,5.38301839]
[1772993591452,5.6790095,81.579,81.54,5.38301839]
[1772993592850,5.6790095,81.579,81.542,5.38301839]
[1772993593549,5.6790095,81.579,81.546,5.38301839]
[1772993596545,4.0127578,81.56,81.523,5.38301839]
[1772993596742,5.6790095,81.559,81.523,5.38301839]
[1772993601158,5.6790095,81.549,81.512,5.38301839]
[1772993601456,5.6790095,81.539,81.507,11.042]
[1772993601654,5.6790095,81.539,81.507,16.42501839]
[1772993601856,5.6790095,81.539,81.509,16.42501839]
[1772993602450,5.6790095,81.549,81.512,5.38301839]
[1772993602756,5.6790095,81.559,81.512,5.38301839]
[1772993603958,5.6790095,81.559,81.516,11.041]
[1772993604749,5.6790095,81.559,81.516,16.42401839]
[1772993605556,5.6790095,81.559,81.517,5.38301839]
[1772993607564,5.6790095,81.549,81.517,5.38301839]
[1772993607862,5.6790095,81.539,81.508,11.042]
[1772993609160,5.6790095,81.539,81.507,5.38301839]
[1772993609365,5.6790095,81.529,81.496,5.38301839]
[1772993610754,5.6790095,81.529,81.499,5.38301839]
[1772993611360,9.6917673,81.54,81.499,5.38301839]
[1772993611966,5.6790095,81.539,81.501,5.38301839]
[1772993635675,5.60318559,81.537,81.493,11.044]
[1772993635880,5.60318559,81.529,81.482,5.68791568]
[1772993636082,5.60318559,81.519,81.482,5.68791568]
[1772993639173,5.60318559,81.517,81.479,645.31886686]
[1772993639981,5.60318559,81.517,81.472,5.68791568]
[1772993640481,5.60318559,81.517,81.474,5.68791568]
[1772993641281,5.60318559,81.528,81.481,5.68791568]
[1772993642889,5.60318559,81.528,81.491,5.72092561]
[1772993643981,5.66476331,81.539,81.491,5.72092561]
[1772993644785,5.66476331,81.533,81.491,5.72092561]
[1772993648892,5.66476331,81.533,81.493,6.01656052]
[1772993649088,5.85505776,81.541,81.493,6.01656052]
[1772993649892,5.85505776,81.541,81.495,6.01656052]
[1772993650192,5.85505776,81.539,81.495,6.01656052]
[1772993652592,4.01155414,81.54,81.495,6.01656052]
[1772993652593,5.85505776,81.536,81.495,6.01656052]
[1772993656798,5.85505776,81.529,81.495,6.01656052]
[1772993657004,5.85505776,81.529,81.487,6.01656052]
[1772993657505,5.85505776,81.527,81.487,6.01656052]
[1772993658700,5.85505776,81.519,81.487,6.01656052]
[1772993660804,11.041,81.516,81.487,6.01656052]
[1772993661004,5.85505776,81.515,81.478,6.01656052]
[1772993663905,4.01155414,81.52,81.478,6.01656052]
[1772993663906,5.85505776,81.513,81.478,6.01656052]
[1772993664906,5.85505776,81.507,81.461,6.01656052]
[1772993665908,5.85505776,81.503,81.461,6.01656052]
[1772993668012,5.85505776,81.479,81.427,6.01656052]
[1772993668714,5.85505776,81.479,81.431,6.01656052]
[1772993670310,5.85505776,81.469,81.431,6.01656052]
[1772993670504,5.85505776,81.469,81.415,6.01656052]
[1772993671115,5.85505776,81.479,81.421,6.01656052]
[1772993672810,6.01784971,81.489,81.441,5.72379011]
[1772993673813,6.01784971,81.487,81.441,5.72379011]
[1772993680417,6.01784971,81.479,81.431,5.72379011]
[1772993680820,6.01784971,81.469,81.431,5.72379011]
[1772993681614,6.01784971,81.459,81.422,5.72379011]
[1772993690928,4.01928817,81.47,81.422,5.72379011]
[1772993690929,6.01784971,81.469,81.422,5.72379011]
[1772993691834,6.01784971,81.469,81.42,4.01928817]
[1772993691835,6.01784971,81.469,81.426,5.72379011]
[1772993692538,15.06528817,81.48,81.413,654.93279145]
[1772993692539,21.08313788,81.48,81.43,4.01928817]
[1772993692837,21.08313788,81.48,81.432,5.72379011]
[1772993693338,6.01784971,81.48,81.439,5.72379011]
[1772993695734,6.01784971,81.48,81.441,11.051]
[1772993695931,6.01784971,81.48,81.442,5.72379011]
[1772993699540,6.01784971,81.479,81.442,5.72379011]
[1772993700844,6.01784971,81.497,81.458,5.72379011]
[1772993701138,6.01784971,81.497,81.457,11.049]
[1772993701139,6.01784971,81.479,81.431,5.72379011]
[1772993701338,6.01784971,81.469,81.431,5.72379011]
[1772993701553,6.01784971,81.459,81.421,5.72379011]
[1772993702153,6.01784971,81.469,81.424,5.72379011]
[1772993702351,12.47026454,81.503,81.431,5.72379011]
[1772993702352,6.01784971,81.479,81.431,5.72379011]
[1772993703653,6.01784971,81.479,81.439,11.051]
[1772993703846,5.86060525,81.491,81.441,6.05701806]
[1772993704857,5.86060525,81.488,81.447,6.05701806]
[1772993705563,5.86060525,81.488,81.449,5.63609947]
[1772993713263,6.11407292,81.499,81.452,5.63609947]
[1772993713465,6.11407292,81.497,81.452,5.63609947]
[1772993713669,10.45008493,81.496,81.452,5.63609947]
[1772993713862,10.45008493,81.495,81.452,5.63609947]
[1772993714063,10.45008493,81.494,81.452,5.63609947]
[1772993714265,16.56415785,81.493,81.452,5.63609947]
[1772993714465,10.45008493,81.492,81.452,5.63609947]
[1772993714666,6.11407292,81.493,81.452,5.63609947]
[1772993714667,10.45008493,81.491,81.452,5.63609947]
[1772993714866,6.11407292,81.493,81.456,5.63609947]
[1772993715066,10.44974341,81.492,81.456,5.63609947]
[1772993715267,10.44974341,81.491,81.456,5.63609947]
[1772993715466,6.11407292,81.492,81.456,5.63609947]
[1772993719974,6.11407292,81.492,81.458,5.63609947]
[1772993722277,6.11407292,81.491,81.458,5.63609947]
[1772993723381,6.11407292,81.489,81.446,5.63609947]
[1772993724183,6.11407292,81.489,81.447,5.63609947]
[1772993725483,6.11407292,81.499,81.451,5.63609947]
[1772993726881,6.11407292,81.499,81.456,5.63609947]
[1772993731088,6.11407292,81.499,81.46,5.63609947]
[1772993741793,5.9663536,81.497,81.46,5.63609947]
[1772993741994,5.9663536,81.489,81.451,5.84851733]
[1772993742596,5.9663536,81.489,81.453,5.84851733]
[1772993743792,5.9663536,81.489,81.455,5.84851733]
[1772993751909,5.9663536,81.489,81.459,5.84851733]
[1772993754808,5.9663536,81.479,81.421,5.84851733]
[1772993755610,5.9663536,81.479,81.442,5.84851733]
[1772993756607,5.9663536,81.479,81.446,5.84851733]
[1772993758210,4.01610411,81.49,81.45,5.84851733]
[1772993758405,5.9663536,81.489,81.45,5.84851733]
[1772993759914,5.9663536,81.489,81.452,5.84851733]
[1772993764107,5.85448485,81.485,81.431,5.70376557]
[1772993764308,5.85448485,81.479,81.431,5.70376557]
[1772993764908,5.85448485,81.479,81.435,11.052]
[1772993765113,5.85448485,81.479,81.436,5.70376557]
[1772993765913,5.85448485,81.479,81.438,11.051]
[1772993766516,970.44369703,81.507,81.413,654.93279145]
[1772993766517,6.06642355,81.469,81.429,16.72106254]
[1772993768215,6.06642355,81.469,81.43,5.66806254]
[1772993769919,6.06642355,81.449,81.419,11.054]
[1772993770212,4.01610411,81.44,81.413,654.93279145]
[1772993771519,6.06642355,81.449,81.41,11.055]
[1772993771720,6.06642355,81.439,81.41,11.055]
[1772993772619,6.06642355,81.439,81.411,5.66806254]
[1772993773119,6.06642355,81.449,81.411,5.66806254]
[1772993773321,6.06642355,81.449,81.41,11.055]
[1772993773322,6.06642355,81.469,81.425,5.66806254]
[1772993774619,6.06642355,81.469,81.428,5.66806254]
[1772993777621,6.06642355,81.469,81.431,5.66806254]
[1772993777823,15.06210411,81.48,81.431,5.66806254]
[1772993777824,6.06642355,81.479,81.431,5.66806254]
[1772993778924,6.06642355,81.479,81.42,4.01610411]
[1772993778925,6.06642355,81.479,81.433,5.66806254]
[1772993779424,6.06642355,81.476,81.433,5.66806254]
[1772993780822,6.06642355,81.474,81.433,5.66806254]
[1772993782521,6.06642355,81.474,81.433,16.72006254]
[1772993782723,6.06642355,81.474,81.434,5.66806254]
[1772993783927,6.06642355,81.474,81.436,5.66806254]
[1772993785031,6.06642355,81.474,81.44,5.66806254]
[1772993793825,5.65498292,81.459,81.421,5.84307257]
[1772993794021,5.65498292,81.439,81.41,5.84307257]
[1772993794223,4.01610411,81.45,81.391,5.84307257]
[1772993795023,4.01610411,81.45,81.417,5.84307257]
[1772993798333,5.65498292,81.453,81.417,5.84307257]
[1772993800933,5.65498292,81.464,81.419,11.054]
[1772993801134,4.01610411,81.46,81.42,5.84307257]
[1772993801434,9.67108703,81.46,81.42,5.84307257]
[1772993801634,5.65498292,81.459,81.42,5.84307257]
[1772993807637,9.67441809,81.43,81.394,5.84307257]
[1772993807845,5.65498292,81.429,81.394,5.84307257]
[1772993808536,4.01943517,81.42,81.371,5.84307257]
[1772993808738,4.01943517,81.42,81.327,11.99601607]
[1772993808739,4.01943517,81.4,81.356,5.84307257]
[1772993808944,5.65498292,81.389,81.356,5.84307257]
[1772993809138,4.01943517,81.41,81.359,5.84307257]
[1772993809442,4.01943517,81.42,81.37,4.01943517]
[1772993809642,15.22786792,81.46,81.371,5.84307257]
[1772993809643,5.65498292,81.421,81.371,5.84307257]
[1772993809938,4.01943517,81.44,81.383,5.84307257]
[1772993810138,5.65498292,81.439,81.383,5.84307257]
[1772993810441,5.65498292,81.429,81.383,5.84307257]
[1772993810637,5.65498292,81.429,81.385,5.84307257]
[1772993811234,4.01943517,81.44,81.387,5.84307257]
[1772993811442,5.65498292,81.439,81.387,5.84307257]
[1772993812040,4.01943517,81.43,81.387,5.84307257]
[1772993812635,5.65498292,81.439,81.391,5.84307257]
[1772993812841,5.65498292,81.449,81.391,5.84307257]
[1772993813636,5.65498292,81.449,81.35,62.0]
[1772993813637,5.65498292,81.449,81.401,5.84307257]
[1772993813836,9.67441809,81.46,81.401,5.84307257]
[1772993814040,5.65498292,81.459,81.401,5.84307257]
[1772993814738,5.65498292,81.459,81.403,11.056]
[1772993814939,5.65498292,81.459,81.404,5.84307257]
[1772993816238,5.65498292,81.459,81.408,5.84307257]
[1772993816434,5.65498292,81.459,81.411,5.84307257]
[1772993817237,5.65498292,81.459,81.422,5.84307257]
[1772993818442,5.65498292,81.469,81.422,5.84307257]
[1772993818742,5.65498292,81.469,81.424,11.053]
[1772993819249,5.65498292,81.469,81.425,5.84307257]
[1772993822147,5.65498292,81.49,81.431,5.84307257]
[1772993822354,5.65498292,81.49,81.441,5.84307257]
[1772993823753,5.65498292,81.49,81.442,11.051]
[1772993823956,5.65498292,81.49,81.451,6.17883012]
[1772993824747,5.97369837,81.494,81.454,6.17883012]
[1772993824955,5.97369837,81.489,81.431,6.17883012]
[1772993825255,5.97369837,81.489,81.441,6.17883012]
[1772993826855,5.97369837,81.489,81.447,5.92744572]
[1772993827955,5.81717073,81.507,81.451,5.92744572]
[1772993828159,5.81717073,81.507,81.461,5.92744572]
[1772993828758,5.81717073,81.507,81.472,5.92744572]
[1772993828957,5.81717073,81.519,81.472,5.92744572]
[1772993829757,5.81717073,81.519,81.473,5.92744572]
[1772993829956,5.81717073,81.519,81.481,5.92744572]
[1772993830456,4.01943517,81.53,81.482,5.92744572]
[1772993830856,9.8366059,81.53,81.482,5.92744572]
[1772993831647,5.81717073,81.53,81.482,5.92744572]
[1772993831854,5.81717073,81.53,81.487,5.92744572]
[1772993833860,5.81717073,81.519,81.463,5.92744572]
[1772993834060,5.81717073,81.499,81.418,5.92744572]
[1772993834362,5.81717073,81.499,81.451,5.92744572]
[1772993834760,5.81717073,81.499,81.378,176.0]
[1772993834761,5.81717073,81.479,81.439,5.92744572]
[1772993835063,5.81717073,81.479,81.427,5.92744572]
[1772993836057,5.81717073,81.469,81.411,5.92744572]
[1772993836253,4.01943517,81.46,81.411,5.92744572]
[1772993836654,5.81717073,81.459,81.415,11.054]
[1772993836859,4.01943517,81.45,81.415,11.054]
[1772993837161,4.01943517,81.47,81.416,5.92744572]
[1772993837365,4.01943517,81.47,81.431,11.052]
[1772993840160,4.01943517,81.46,81.422,16.98044572]
[1772993840359,5.81717073,81.459,81.422,11.053]
[1772993841365,4.01943517,81.45,81.412,11.055]
[1772993841863,4.01943517,81.45,81.371,22.121]
[1772993841864,4.01943517,81.45,81.418,11.054]
[1772993842063,5.81717073,81.459,81.418,11.054]
[1772993842255,5.81717073,81.459,81.419,5.92744572]
[1772993848562,5.81717073,81.476,81.422,5.92744572]
[1772993848768,4.01943517,81.47,81.422,5.92744572]
[1772993849868,4.01943517,81.47,81.436,5.92744572]
[1772993850871,4.01943517,81.47,81.438,11.051]
[1772993851273,4.01943517,81.47,81.439,5.92744572]
[1772993851865,4.01943517,81.48,81.444,5.92744572]
[1772993852071,5.81717073,81.479,81.421,5.92744572]
[1772993853272,4.01943517,81.47,81.421,5.92744572]
[1772993853765,4.01943517,81.47,81.435,17.03742882]
[1772993854171,4.01943517,81.47,81.436,5.98542882]
[1772993855882,4.01943517,81.47,81.438,11.051]
[1772993856073,5.81717073,81.479,81.438,11.051]
[1772993858580,5.81717073,81.479,81.438,17.03642882]
[1772993860779,6.10428159,81.469,81.43,11.052]
[1772993860981,6.10428159,81.469,81.43,17.03742882]
[1772993861378,6.10428159,81.469,81.431,5.98542882]
[1772993861581,6.10428159,81.469,81.43,11.052]
[1772993861582,6.10428159,81.469,81.434,5.98542882]
[1772993863286,6.10428159,81.459,81.422,5.98542882]
[1772993864883,10.12371676,81.47,81.424,5.98542882]
[1772993865088,6.10428159,81.469,81.424,5.98542882]
[1772993866886,6.10428159,81.469,81.431,11.052]
[1772993867085,6.10428159,81.469,81.431,17.03742882]
[1772993872099,6.10428159,81.469,81.431,5.98542882]
[1772993875395,6.10428159,81.459,81.421,5.98542882]
[1772993876793,6.10428159,81.469,81.423,5.98542882]
[1772993880998,11.046,81.476,81.372,12.26]
[1772993880999,6.10428159,81.449,81.402,5.98542882]
[1772993882202,6.10428159,81.46,81.412,5.98542882]
[1772993883906,6.10428159,81.46,81.425,11.053]
[1772993884106,6.10428159,81.46,81.426,5.72796074]
[1772993885510,4.01887145,81.47,81.41,4.01887145]
[1772993885511,6.1758685,81.469,81.429,6.1943746]
[1772993886102,6.1758685,81.469,81.43,17.2463746]
[1772993888011,6.1758685,81.479,81.438,6.1943746]
[1772993888306,6.1758685,81.489,81.438,6.1943746]
[1772993889410,6.1758685,81.489,81.448,6.1943746]
[1772993896709,6.1758685,81.489,81.381,38.27112564]
[1772993896710,6.1758685,81.489,81.451,6.1943746]
[1772993897714,6.1758685,81.489,81.452,11.049]
[1772993898510,6.1758685,81.489,81.451,6.1943746]
[1772993898511,4.01887145,81.48,81.441,6.1943746]
[1772993898716,6.1758685,81.479,81.441,6.1943746]
[1772993899815,6.1758685,81.479,81.441,17.2453746]
[1772993902815,6.1758685,81.459,81.415,6.1943746]
[1772993903319,6.1758685,81.429,81.365,6.1943746]
[1772993903520,6.1758685,81.409,81.365,6.1943746]
[1772993904323,6.1758685,81.409,81.367,6.1943746]
[1772993905920,6.1758685,81.409,81.369,11.061]
[1772993908511,6.1758685,81.409,81.369,17.2553746]
[1772993909018,6.1758685,81.409,81.35,4.01887145]
[1772993909019,4.01887145,81.4,81.357,6.1943746]
[1772993909217,6.1758685,81.399,81.357,6.1943746]
[1772993912224,6.1758685,81.419,81.361,6.1943746]
[1772993913324,5.78190162,81.409,81.361,6.1943746]
[1772993913818,5.78190162,81.409,81.368,6.05606718]
[1772993916524,5.78190162,81.409,81.37,6.05606718]
[1772993923030,5.78190162,81.409,81.366,11.061]
[1772993923031,5.78190162,81.409,81.372,6.05606718]
[1772993923733,5.78190162,81.409,81.375,11.06]
[1772993924428,5.78190162,81.409,81.372,6.05606718]
[1772993924835,5.78190162,81.389,81.347,6.05606718]
[1772993925835,5.78190162,81.389,81.348,6.05606718]
[1772993926234,5.78190162,81.389,81.35,11.063]
[1772993926434,5.78190162,81.389,81.351,6.05606718]
[1772993927839,5.78190162,81.389,81.357,6.05606718]
[1772993928041,5.78190162,81.389,81.346,6.05606718]
[1772993929843,5.78190162,81.389,81.349,6.05606718]
[1772993932246,12.39192394,81.416,81.334,6.05606718]
[1772993932247,5.78190162,81.379,81.334,6.05606718]
[1772993932436,5.78190162,81.369,81.334,6.05606718]
[1772993933532,5.78190162,81.369,81.311,6.05606718]
[1772993933732,5.78190162,81.369,81.331,6.05606718]
[1772993935244,9.808062,81.38,81.334,6.05606718]
[1772993935544,5.78190162,81.379,81.334,6.05606718]
[1772993936136,5.78190162,81.379,81.336,6.05606718]
[1772993936932,5.78190162,81.391,81.354,6.05606718]
[1772993937847,5.78190162,81.391,81.355,11.063]
[1772993938238,5.78190162,81.391,81.354,6.05606718]
[1772993939143,477.28841909,81.405,81.304,12.28]
[1772993939144,5.78190162,81.404,81.356,6.05606718]
[1772993939741,5.78190162,81.404,81.359,6.05606718]
[1772993939941,477.28841909,81.405,81.319,6.05606718]
[1772993939942,4.02616038,81.37,81.319,6.05606718]
[1772993940250,4.02616038,81.36,81.319,6.05606718]
[1772993940436,5.78190162,81.369,81.319,6.05606718]
[1772993940942,5.78190162,81.368,81.319,6.05606718]
[1772993941245,4.02616038,81.36,81.319,6.05606718]
[1772993942038,5.78190162,81.368,81.319,6.05606718]
[1772993942636,5.74114449,81.379,81.321,6.05606718]